fUST/lending_fUST_20260324
["ID","MTS","AMOUNT","RATE_DAILY","PERIOD"]
[408826078,1774318231958,-5000.0,0.00011782,2]
[408826079,1774318231968,-1080.6606722,0.00011901,2]
[408826080,1774318231978,-588.0,0.00011901,2]
[408826081,1774318231987,-1000.0,0.00013699,2]
[408826082,1774318231996,-2277.94416425,0.00017382,2]
[408826083,1774318232008,-536.22387925,0.00017382,2]
[408826295,1774318246319,-728.50937415,0.00011547,2]
[408826296,1774318246329,-1661.6225094,0.00017382,2]
[408826336,1774319432063,-2373.67130204,9.354e-05,2]
[408826338,1774319432073,-353.80343287,9.448e-05,2]
[408826340,1774319432084,-384.8935447,9.448e-05,2]
[408826342,1774319432093,-112.32138422,9.448e-05,2]
[408826350,1774319438272,-439.67861578,9.448e-05,2]
[408826351,1774319438281,-5000.0,9.543e-05,2]
[408826352,1774319438291,-1200.0,9.735e-05,2]
[408826353,1774319438300,-300.0,0.00013689,2]
[408826354,1774319438310,-1000.0,0.00013699,2]
[408826355,1774319438319,-793.1422137,0.00016493,2]
[408826356,1774319438328,-7447.4818028,0.00017382,2]
[408826357,1774319438338,-180.135105,0.00017697,2]
[408826358,1774319438347,-167.92171881,0.00017803,2]
[408826360,1774319438355,-1670.346803,0.00017903,2]
[408826361,1774319438365,-243.0801896,0.00017903,2]
[408826362,1774319438374,-4274.29756571,0.00017903,2]
[408826363,1774319438385,-47.46307799,0.00017903,2]
[408826364,1774319438394,-2236.183094,0.00017903,2]
[408826365,1774319438403,-224.19422152,0.00017903,2]
[408826366,1774319438414,-3188.50813848,0.00017903,2]
[408826367,1774319438423,-151.0,0.00017903,2]
[408826368,1774319438431,-158.776043,0.00017903,2]
[408826369,1774319438441,-234.0,0.00017903,2]
[408826370,1774319438449,-234.0,0.00017903,2]
[408826371,1774319438459,-234.0,0.00017903,2]
[408826372,1774319438468,-234.0,0.00017903,2]
[408826373,1774319438477,-3891.313874,0.00018742,2]
[408826374,1774319438486,-151.0,0.00018742,2]
[408826375,1774319438495,-151.0,0.00018742,2]
[408826376,1774319438503,-151.0,0.00018742,2]
[408826377,1774319438513,-230.51876013,0.00018802,2]
[408826378,1774319438522,-1000.0,0.00018925,2]
[408826379,1774319438532,-151.0,0.00018925,2]
[408826380,1774319438542,-234.0,0.00018925,2]
[408826381,1774319438550,-234.0,0.00018925,2]
[408826382,1774319438560,-234.0,0.00018925,2]
[408826383,1774319438570,-234.0,0.00018925,2]
[408826384,1774319438579,-151.0,0.00019178,2]
[408826385,1774319438592,-151.456027,0.00019178,2]
[408826386,1774319438601,-152.0,0.00019637,2]
[408826387,1774319438611,-159.68687412,0.000197,2]
[408826388,1774319438619,-160.0,0.00019877,3]
[408826389,1774319438629,-151.0,0.000199,2]
[408826390,1774319438638,-151.0,0.000199,2]
[408826391,1774319438647,-151.0,0.000199,2]
[408826392,1774319438656,-151.0,0.000199,2]
[408826393,1774319438665,-264.805951,0.000199,2]
[408826394,1774319438673,-151.0,0.000199,2]
[408826395,1774319438682,-4320.12480336,0.000199,2]
[408826410,1774319440697,-3537.35631481,9.354e-05,2]
[408826582,1774319445012,-1462.64368519,9.354e-05,2]
[408826583,1774319445021,-1558.36450682,0.000199,2]
[408826584,1774319445030,-5077.75807645,0.000199,2]
[408826585,1774319445040,-234.0,0.000199,2]
[408826586,1774319445051,-234.0,0.000199,2]
[408826587,1774319445060,-234.0,0.000199,2]
[408826588,1774319445070,-234.0,0.000199,2]
[408826589,1774319445080,-234.0,0.000199,2]
[408826590,1774319445089,-234.0,0.000199,2]
[408826591,1774319445098,-234.0,0.000199,2]
[408826593,1774319445107,-234.0,0.000199,2]
[408826594,1774319445117,-570.72385512,0.00019973,2]
[408826595,1774319445126,-506.53912135,0.00019973,2]
[408826596,1774319445135,-503.12105693,0.00019973,2]
[408826597,1774319445145,-511.28736077,0.00019973,2]
[408826598,1774319445154,-151.0,0.00019973,2]
[408826600,1774319445163,-2218.70532825,0.0002,2]
[408826602,1774319445174,-1246.62269966,0.0002,2]
[408826605,1774319445185,-6560.50386647,0.0002,2]
[408826609,1774319445203,-446.39203902,0.00017903,2]
[408826611,1774319445213,-338.39080898,0.00017903,2]
[408826612,1774319445222,-532.54216547,0.0002,2]
[408826614,1774319445233,-1504.3502,0.0002,2]
[408826630,1774319446208,-784.782848,0.00018925,2]
[408826631,1774319446217,-784.782848,0.000199,2]
[408826632,1774319446227,-82870.11735159,0.0002,2]
[408826683,1774319563768,-1390.88023901,0.00017547,2]
[408826705,1774320632261,-566.02986261,9.415e-05,2]
[408826707,1774320632276,-4433.97013739,9.415e-05,2]
[408826709,1774320632285,-2.87922445,9.51e-05,2]
[408826713,1774320632318,-531.51072655,9.51e-05,2]
[408826767,1774320638409,-1410.22,9.51e-05,2]
[408826783,1774320640926,-452.28667416,9.51e-05,2]
[408826816,1774320646482,-2603.10337484,9.51e-05,2]
[408826817,1774320646492,-553.0,9.51e-05,2]
[408826818,1774320646501,-261.9,0.0001,2]
[408826819,1774320646511,-261.9,0.0001,2]
[408826820,1774320646520,-500.0,0.0001,2]
[408826821,1774320646529,-500.0,0.0001,2]
[408826822,1774320646538,-500.0,0.0001,2]
[408826823,1774320646547,-333.33,0.0001,2]
[408826824,1774320646556,-129.48702887,0.000114,2]
[408826825,1774320646694,-132.41297113,0.000114,2]
[408826826,1774320646704,-1000.0,0.00013699,2]
[408826827,1774320646714,-1209.7884224,0.00016903,2]
[408826828,1774320646724,-148.5219259,0.00018426,2]
[408826833,1774321287882,-248.66251706,8.339e-05,2]
[408826834,1774321287905,-1220.04881988,8.339e-05,2]
[408826835,1774321317054,-248.66251706,8.423e-05,2]
[408826836,1774321538428,-388.57958789,8.256e-05,2]
[408826837,1774321538565,-414.48375,8.256e-05,2]
[408826849,1774321832504,-770.00854438,7.93e-05,2]
[408826894,1774321838702,-3178.26560067,7.93e-05,2]
[408826895,1774321838712,-531.0,7.93e-05,2]
[408826896,1774321838722,-1200.0,8.009e-05,2]
[408826897,1774321838731,-5000.0,8.01e-05,2]
[408826898,1774321838741,-300.0,8.337e-05,2]
[408826899,1774321838750,-300.0,8.337e-05,2]
[408826900,1774321838760,-1680.0,8.81e-05,2]
[408826901,1774321838769,-420.0,9.171e-05,2]
[408826902,1774321838778,-2081.0,9.691e-05,2]
[408826903,1774321838788,-151.00685085,0.0001,2]
[408826904,1774321838797,-587.0,0.00010088,2]
[408826905,1774321838806,-307.0,0.00011097,2]
[408826906,1774321838815,-151.05612862,0.00013698,2]
[408826907,1774321838825,-1000.0,0.00013699,2]
[408826908,1774321838835,-474.54287508,0.00015,2]
[408826909,1774321838844,-339.14059831,0.0001523,2]
[408826910,1774321838854,-412.37967109,0.00016031,2]
[408826911,1774321838863,-200.0,0.00017557,2]
[408826912,1774321838873,-152.0,0.0001825,2]
[408826913,1774321838882,-851.4780741,0.00018426,2]
[408826914,1774321838891,-10766.0,0.00018426,2]
[408826915,1774321838901,-151.0,0.00018426,2]
[408826916,1774321838910,-338.5790537,0.00018457,2]
[408826917,1774321838919,-9790.3740891,0.00018457,2]
[408826918,1774321838928,-931.3852699,0.00018457,2]
[408826919,1774321838937,-151.0,0.00018457,2]
[408826920,1774321838946,-200.0,0.00018944,2]
[408826921,1774321838956,-151.0,0.00019178,2]
[408826922,1774321838965,-151.0,0.00019178,2]
[408826923,1774321838974,-1179.4829372,0.0001948,2]
[408826924,1774321838984,-152.0,0.00019637,2]
[408826925,1774321838993,-157.0,0.00019862,2]
[408826926,1774321839002,-160.0,0.00019877,3]
[408826927,1774321839012,-444.91772653,0.000199,2]
[408826928,1774321839021,-314.81384069,0.000199,18]
[408826929,1774321839031,-637.439373,0.000199,18]
[408826930,1774321839040,-583.10843518,0.000199,18]
[408826931,1774321839049,-648.06325556,0.000199,18]
[408826932,1774321839058,-5290.64037909,0.000199,2]
[408826933,1774321839068,-507.42269744,0.00019973,2]
[408826934,1774321839078,-509.46308694,0.00019973,2]
[408826935,1774321839087,-16483.09200871,0.0002,2]
[408826936,1774321839098,-809.1031,0.0002,2]
[408826937,1774321839110,-54492.37436928,0.0002,2]
[408826960,1774321844726,-398.64558261,0.0002,2]
[408826961,1774321844737,-4587.0657763,0.0002,2]
[408826962,1774321844748,-6121.05200124,0.0002,2]
[408826963,1774321844760,-302.62139999,0.0002,2]
[408826964,1774321844771,-2218.61898699,0.0002,2]
[408826965,1774321844782,-2682.75126377,0.0002,2]
[408826981,1774321846727,-3429.88296519,0.0002,2]
[408826982,1774321846738,-17358.80346027,0.0002,2]
[408826983,1774321846783,-107307.46643491,0.0002,2]
[408827028,1774323031561,-1006.81783792,0.00012291,2]
[408827030,1774323031575,-631.80259564,0.00012291,2]
[408827032,1774323031587,-5000.0,0.00012415,2]
[408827035,1774323031598,-595.0,0.00012415,2]
[408827037,1774323031608,-1200.0,0.00012539,2]
[408827039,1774323031620,-917.44580331,0.0001254,2]
[408827041,1774323031633,-2100.37719293,0.0001254,2]
[408827044,1774323031645,-490.60507865,0.0001254,2]
[408827046,1774323031656,-1000.0,0.00013699,2]
[408827048,1774323031666,-219.0419887,0.00018464,2]
[408827050,1774323031676,-300.0,0.00018563,2]
[408827052,1774323031687,-280.0,0.00018563,2]
[408827054,1774323031698,-300.0,0.00018563,2]
[408827056,1774323031711,-1000.0,0.00018564,2]
[408827058,1774323031721,-210.0,0.00018944,2]
[408827060,1774323031731,-2838.97336621,0.00019343,2]
[408827101,1774323040096,-247.25434179,0.00019343,2]
[408827102,1774323040106,-949.84928557,0.00019343,2]
[408827103,1774323040117,-1189.03889229,0.00019343,2]
[408827105,1774323040149,-533.07358474,0.00019343,2]
[408827107,1774323040160,-210.0,0.00019637,2]
[408827108,1774323040170,-163.0,0.000198,2]
[408827110,1774323040180,-163.0,0.000198,2]
[408827112,1774323040192,-4403.56084559,0.000199,2]
[408827147,1774323042829,-358.0154956,0.000199,2]
[408827148,1774323042841,-167.9217188,0.000199,2]
[408827149,1774323042852,-4707.94388559,0.0002,2]
[408827155,1774323046030,-5000.0,0.00019701,2]
[408827156,1774323046040,-37082.94545538,0.0002,2]
[408827177,1774324231716,-709.01536116,0.00013292,2]
[408827183,1774324231770,-1117.43519046,0.00013292,2]
[408827191,1774324231828,-1163.26236751,0.00013292,2]
[408827253,1774324240528,-601.7120483,0.00013292,2]
[408827254,1774324240540,-1408.57503257,0.00013292,2]
[408827256,1774324240550,-611.0,0.00013426,2]
[408827258,1774324240559,-1000.0,0.00013699,2]
[408827260,1774324240568,-220.67706246,0.00019637,2]
[408827262,1774324240577,-300.0,0.00019642,2]
[408827264,1774324240586,-434.21858455,0.00019642,2]
[408827330,1774324246115,-5000.0,0.00019446,2]
[408827332,1774324246124,-726.78141545,0.00019642,2]
[408827334,1774324246134,-4377.8168436,0.00019643,2]
[408827336,1774324246143,-153.65423,0.00019643,2]
[408827338,1774324246153,-334.36029813,0.000199,18]
[408827339,1774324246162,-706.88454857,0.000199,18]
[408827341,1774324246171,-633.46581836,0.000199,18]
[408827343,1774324246180,-694.19301851,0.000199,18]
[408827345,1774324246190,-4483.77294438,0.000199,2]
[408827347,1774324246199,-500.0,0.00019973,2]
[408827349,1774324246208,-500.0,0.00019973,2]
[408827351,1774324246217,-500.0,0.00019973,2]
[408827353,1774324246226,-500.0,0.00019973,2]
[408827355,1774324246235,-500.0,0.00019973,2]
[408827356,1774324246245,-198.88301812,0.00019988,2]
[408827358,1774324246256,-151.0,0.00019988,2]
[408827360,1774324246266,-162.380719,0.00019988,2]
[408827362,1774324246275,-589.81085687,0.00019988,2]
[408827364,1774324246284,-162.380719,0.00019988,2]
[408827366,1774324246296,-537.6845,0.00019988,2]
[408827367,1774324246306,-162.380719,0.00019988,2]
[408827369,1774324246315,-168.3888056,0.00019988,2]
[408827371,1774324246325,-174.61919141,0.00019988,2]
[408827373,1774324246336,-181.08010149,0.00019988,2]
[408827375,1774324246346,-187.78006525,0.00019988,2]
[408827376,1774324246355,-194.72792766,0.00019988,2]
[408827377,1774324246365,-537.6845,0.00019988,2]
[408827379,1774324246374,-201.93286099,0.00019988,2]
[408827381,1774324246383,-209.40437684,0.00019988,2]
[408827383,1774324246393,-217.15233878,0.00019988,2]
[408827384,1774324246402,-2150.738,0.00019988,2]
[408827385,1774324246411,-225.18697532,0.00019988,2]
[408827386,1774324246420,-233.51889341,0.00019988,2]
[408827387,1774324246429,-242.15909246,0.00019988,2]
[408827388,1774324246439,-294.08202782,0.00019988,2]
[408827389,1774324246448,-4254.34977525,0.00019999,2]
[408827390,1774324246457,-27885.57637109,0.0002,2]
[408827391,1774324246469,-6941.10724371,0.0002,2]
[408827553,1774325438051,-2078.55129964,0.00012546,2]
[408827558,1774325438160,-2921.44870036,0.00012546,2]
[408827559,1774325438170,-599.0,0.00012673,2]
[408827561,1774325438180,-209.19754444,0.00013326,2]
[408827562,1774325438189,-1000.0,0.00013699,2]
[408827563,1774325438198,-250.52143727,0.00016745,2]
[408827565,1774325438208,-1200.0,0.00017743,2]
[408827567,1774325438218,-1000.0,0.00017745,2]
[408827569,1774325438227,-300.0,0.00019543,2]
[408827570,1774325438236,-300.0,0.00019543,2]
[408827572,1774325438245,-300.0,0.00019543,2]
[408827573,1774325438255,-583.39188483,0.00019545,2]
[408827574,1774325438264,-2150.738,0.00019545,2]
[408827575,1774325438274,-6678.5995125,0.00019557,2]
[408827576,1774325438284,-1194.7816399,0.00019557,2]
[408827577,1774325438294,-1185611.52869864,0.00019896,2]
[408827578,1774325438304,-626.47,0.00019896,2]
[408827579,1774325438313,-626.47,0.00019896,2]
[408827580,1774325438323,-626.47,0.00019896,2]
[408827581,1774325438332,-626.47,0.00019896,2]
[408827582,1774325438343,-626.47,0.00019896,2]
[408827583,1774325438352,-626.47,0.00019896,2]
[408827584,1774325438361,-626.47,0.00019896,2]
[408827585,1774325438371,-899.19,0.00019896,2]
[408827586,1774325438381,-414199.72339495,0.00019897,2]
[408827587,1774325438392,-4418.18471651,0.00019897,2]
[408827599,1774325444378,-27018.54439703,0.00019897,2]
[408827604,1774325446180,-5000.0,0.00019698,2]
[408827605,1774325446189,-4997.95176067,0.00019897,2]
[408827606,1774325446234,-845.71297338,0.00019897,2]
[408827607,1774325446245,-9829.84079561,0.00019897,2]
[408827608,1774325446256,-927.19930424,0.00019897,2]
[408827643,1774326632087,-859.11990399,0.00012928,2]
[408827650,1774326632144,-399.86526697,0.00012928,2]
[408827652,1774326632155,-2425.80830328,0.00012928,2]
[408827669,1774326638310,-508.08476744,0.00012928,2]
[408827670,1774326638320,-2326.55528655,0.00013059,2]
[408827671,1774326638330,-605.0,0.00013059,2]
[408827672,1774326638339,-1200.0,0.00013698,2]
[408827673,1774326638348,-1000.0,0.00013699,2]
[408827674,1774326638357,-576.42022008,0.00017474,5]
[408827675,1774326638367,-300.0,0.00017901,2]
[408827676,1774326638376,-8249.0,0.00018,7]
[408827677,1774326638386,-282.369334,0.00019272,2]
[408827678,1774326638396,-500.0,0.00019591,2]
[408827679,1774326638405,-500.0,0.00019591,2]
[408827680,1774326638415,-500.0,0.00019591,2]
[408827681,1774326638425,-500.0,0.00019591,2]
[408827682,1774326638434,-500.0,0.00019591,2]
[408827683,1774326638443,-500.0,0.00019591,2]
[408827684,1774326638452,-500.0,0.00019591,2]
[408827685,1774326638461,-500.0,0.00019591,2]
[408827686,1774326638470,-500.0,0.00019591,2]
[408827687,1774326638479,-550.0,0.00019591,2]
[408827688,1774326638489,-500.0,0.00019591,2]
[408827689,1774326638498,-500.0,0.00019591,2]
[408827690,1774326638507,-500.0,0.00019591,2]
[408827691,1774326638517,-500.0,0.00019591,2]
[408827692,1774326638526,-500.0,0.00019591,2]
[408827693,1774326638535,-500.0,0.00019591,2]
[408827694,1774326638545,-500.0,0.00019591,2]
[408827695,1774326638554,-500.0,0.00019591,2]
[408827696,1774326638564,-500.0,0.00019591,2]
[408827697,1774326638573,-500.0,0.00019591,2]
[408827698,1774326638582,-500.0,0.00019591,2]
[408827699,1774326638592,-500.0,0.00019591,2]
[408827700,1774326638601,-500.0,0.00019591,2]
[408827701,1774326638611,-500.0,0.00019591,2]
[408827702,1774326638620,-500.0,0.00019591,2]
[408827703,1774326638629,-500.0,0.00019591,2]
[408827704,1774326638638,-500.0,0.00019591,2]
[408827705,1774326638648,-500.0,0.00019591,2]
[408827706,1774326638657,-500.0,0.00019591,2]
[408827707,1774326638666,-500.0,0.00019591,2]
[408827708,1774326638676,-500.0,0.00019591,2]
[408827709,1774326638685,-500.0,0.00019591,2]
[408827710,1774326638695,-500.0,0.00019591,2]
[408827711,1774326638704,-500.0,0.00019591,2]
[408827712,1774326638714,-500.0,0.00019591,2]
[408827713,1774326638723,-500.0,0.00019591,2]
[408827714,1774326638733,-500.0,0.00019591,2]
[408827715,1774326638743,-500.0,0.00019591,2]
[408827716,1774326638758,-500.0,0.00019591,2]
[408827717,1774326638769,-500.0,0.00019591,2]
[408827718,1774326638778,-500.0,0.00019591,2]
[408827719,1774326638788,-650.0,0.00019591,2]
[408827720,1774326638797,-500.0,0.00019591,2]
[408827721,1774326638807,-500.0,0.00019591,2]
[408827722,1774326638817,-500.0,0.00019591,2]
[408827723,1774326638826,-250.0,0.00019591,2]
[408827724,1774326638835,-4024.79466426,0.00019592,2]
[408827733,1774326640818,-333.35827293,0.00019592,2]
[408827734,1774326640830,-845.15949572,0.00019592,2]
[408827743,1774326643376,-453.0,0.00019592,2]
[408827744,1774326643436,-652.25,0.00019592,2]
[408827754,1774326646512,-1291.170842,0.00019592,2]
[408827755,1774326646524,-343.56344884,0.00019592,2]
[408827756,1774326724545,-390.88023901,0.00013699,2]
[408827757,1774326724557,-609.11976099,0.00013699,2]
[408827775,1774327832223,-430.852006,0.00013159,2]
[408827776,1774327832279,-4569.147994,0.00013159,2]
[408827777,1774327832292,-609.0,0.00013292,2]
[408827778,1774327832301,-191.0,0.00013698,2]
[408828147,1774327846693,-1200.0,7.6e-05,2]
[408828263,1774329032381,-384.768375,7.227e-05,2]
[408828345,1774329038637,-490.522,7.227e-05,2]
[408828346,1774329038649,-333.17178872,7.227e-05,2]
[408828360,1774329041123,-333.33286503,7.227e-05,2]
[408828361,1774329041179,-3458.20497125,7.227e-05,2]
[408828362,1774329041188,-523.0,7.3e-05,2]
[408828363,1774329041198,-1200.0,7.598e-05,2]
[408828364,1774329041207,-1087.0,7.599e-05,2]
[408828365,1774329041217,-300.0,7.599e-05,2]
[408828366,1774329041226,-8800.0,7.6e-05,2]
[408828367,1774329041236,-158.11403157,8.358e-05,2]
[408828385,1774329044243,-1521.88596843,8.358e-05,2]
[408828386,1774329044253,-420.0,8.359e-05,2]
[408828387,1774329044262,-513.49772291,9.194e-05,2]
[408828400,1774329046697,-1403.0,9.194e-05,2]
[408828401,1774329046708,-193.50227709,9.194e-05,2]
[408828402,1774329046717,-375.87772289,9.195e-05,2]
[408828403,1774329046728,-211.12227711,9.195e-05,2]
[408828404,1774329046738,-300.0,0.00010114,2]
[408828405,1774329046747,-1000.0,0.00011,2]
[408828406,1774329046756,-744.28309989,0.00013699,2]
[408828407,1774329046767,-255.71690011,0.00013699,2]
[408828408,1774329046777,-638.37484181,0.00014,2]
[408828409,1774329046792,-361.62515819,0.00014,2]
[408828410,1774329046801,-2623.31104,0.0001508,2]
[408828411,1774329046811,-1147.87093893,0.00015715,2]
[408828412,1774329046823,-1475.44010107,0.00015715,2]
[408828413,1774329046832,-183.82331592,0.0001628,2]
[408828414,1774329046841,-330.88196865,0.0001628,2]
[408828415,1774329046851,-404.61397047,0.0001628,2]
[408828416,1774329046860,-728.30514684,0.0001628,2]
[408828417,1774329046869,-2623.31104,0.0001635,2]
[408828418,1774329046878,-385.95018105,0.0001664,2]
[408828419,1774329046887,-849.51592989,0.00016681,2]
[408828420,1774329046897,-2623.31104,0.00016985,2]
[408828421,1774329046907,-405.58593282,0.00017474,5]
[408828422,1774329046916,-296.27104629,0.00017474,5]
[408828423,1774329046927,-2623.31104,0.00017619,2]
[408828424,1774329046936,-1622.34373127,0.00017733,5]
[408828425,1774329046945,-1822.7048693,0.00017895,2]
[408828426,1774329046955,-1565.6833619,0.00017895,2]
[408828427,1774329046965,-166.074167,0.00017929,2]
[408828428,1774329046974,-664.29666801,0.00017929,2]
[408828429,1774329046983,-1293.46994079,0.00018177,2]
[408828430,1774329046992,-1185.08418517,0.00018225,5]
[408828431,1774329047001,-587.64637632,0.00018251,2]
[408828432,1774329047010,-2623.31104,0.00018254,2]
[408828433,1774329047020,-1000.0,0.00018395,2]
[408828434,1774329047029,-151.0,0.00018831,2]
[408828435,1774329047040,-151.0,0.00018831,2]
[408828436,1774329047049,-151.0,0.00018831,2]
[408828437,1774329047058,-151.0,0.00018831,2]
[408828438,1774329047068,-217.75709,0.00018831,2]
[408828439,1774329047078,-217.75709,0.00018831,2]
[408828440,1774329047088,-217.75709,0.00018831,2]
[408828441,1774329047097,-217.75709,0.00018831,2]
[408828442,1774329047108,-159.413436,0.00018831,2]
[408828443,1774329047119,-159.413436,0.00018831,2]
[408828444,1774329047129,-159.413436,0.00018831,2]
[408828445,1774329047138,-159.413436,0.00018831,2]
[408828446,1774329047147,-186.988394,0.00018831,2]
[408828447,1774329047157,-186.988394,0.00018831,2]
[408828448,1774329047166,-186.988394,0.00018831,2]
[408828449,1774329047175,-151.0,0.00018831,2]
[408828450,1774329047184,-186.988394,0.00018831,2]
[408828451,1774329047194,-151.0,0.00018831,2]
[408828452,1774329047205,-500.0,0.00018873,2]
[408828453,1774329047216,-500.0,0.00018873,2]
[408828454,1774329047227,-1494.66750302,0.00018873,2]
[408828455,1774329047236,-377.21372501,0.00018873,2]
[408828456,1774329047246,-678.98470502,0.00018873,2]
[408828457,1774329047255,-200.25871468,0.00018999,2]
[408828458,1774329047264,-151.0,0.00018999,2]
[408828459,1774329047273,-162.380719,0.00018999,2]
[408828460,1774329047283,-537.6845,0.00018999,2]
[408828461,1774329047292,-2150.738,0.00018999,2]
[408828462,1774329047301,-328.4,0.00019,7]
[408828463,1774329047310,-1000.0,0.00019,2]
[408828464,1774329047319,-187.44951326,0.00019295,2]
[408828465,1774329047328,-500.0,0.00019392,2]
[408828466,1774329047338,-500.0,0.00019392,2]
[408828467,1774329047347,-500.0,0.00019394,2]
[408828468,1774329047357,-500.0,0.00019394,2]
[408828469,1774329047366,-500.0,0.00019394,2]
[408828470,1774329047375,-500.0,0.00019394,2]
[408828471,1774329047384,-500.0,0.00019394,2]
[408828472,1774329047393,-500.0,0.00019394,2]
[408828473,1774329047402,-500.0,0.00019394,2]
[408828474,1774329047412,-500.0,0.00019394,2]
[408828475,1774329047421,-500.0,0.00019394,2]
[408828476,1774329047431,-500.0,0.00019394,2]
[408828477,1774329047440,-500.0,0.00019394,2]
[408828478,1774329047450,-500.0,0.00019394,2]
[408828479,1774329047459,-335.35017948,0.00019394,2]
[408828480,1774329047468,-151.0,0.000194,2]
[408828481,1774329047476,-151.0,0.000194,2]
[408828482,1774329047485,-1000.0,0.00019421,2]
[408828483,1774329047493,-500.0,0.00019421,2]
[408828484,1774329047502,-151.0,0.00019547,2]
[408828485,1774329047510,-168.3888056,0.00019547,2]
[408828486,1774329047519,-557.5788265,0.00019547,2]
[408828487,1774329047529,-2230.315306,0.00019547,2]
[408828488,1774329047538,-500.0,0.00019592,2]
[408828489,1774329047547,-800.0,0.00019629,5]
[408828490,1774329047556,-47073.05008934,0.00019766,2]
[408828491,1774329047565,-204.769788,0.00019866,2]
[408828492,1774329047574,-2516.453585,0.00019866,2]
[408828493,1774329047584,-204.769788,0.00019866,2]
[408828494,1774329047593,-2516.453585,0.00019866,2]
[408828495,1774329047602,-204.769788,0.00019866,2]
[408828496,1774329047612,-151.0,0.00019866,2]
[408828497,1774329047624,-2516.453585,0.00019866,2]
[408828498,1774329047633,-204.769788,0.00019866,2]
[408828499,1774329047642,-2516.453585,0.00019866,2]
[408828500,1774329047652,-151.0,0.00019866,2]
[408828501,1774329047662,-389.328943,0.00019866,2]
[408828502,1774329047671,-232.831123,0.00019866,2]
[408828503,1774329047680,-389.328943,0.00019866,2]
[408828504,1774329047689,-389.328943,0.00019866,2]
[408828505,1774329047700,-389.328943,0.00019866,2]
[408828506,1774329047710,-449.414475,0.00019866,2]
[408828507,1774329047719,-449.414475,0.00019866,2]
[408828508,1774329047735,-449.414475,0.00019866,2]
[408828509,1774329047745,-449.414475,0.00019866,2]
[408828510,1774329047754,-151.0,0.00019866,2]
[408828511,1774329047767,-151.0,0.00019866,2]
[408828512,1774329047777,-151.0,0.00019866,2]
[408828513,1774329047786,-151.0,0.00019866,2]
[408828514,1774329047795,-247.884543,0.00019866,2]
[408828515,1774329047805,-766.246714,0.00019866,2]
[408828516,1774329047814,-766.246714,0.00019866,2]
[408828517,1774329047824,-766.246714,0.00019866,2]
[408828518,1774329047833,-766.246714,0.00019866,2]
[408828519,1774329047843,-2585.081555,0.00019866,2]
[408828520,1774329047853,-2585.081555,0.00019866,2]
[408828521,1774329047863,-2585.081555,0.00019866,2]
[408828522,1774329047872,-2585.081555,0.00019866,2]
[408828523,1774329047883,-574.67039741,0.00019866,2]
[408828524,1774329047892,-1034.40671535,0.00019866,2]
[408828525,1774329047902,-1838.94527173,0.00019866,2]
[408828526,1774329047912,-2873.35198707,0.00019866,2]
[408828527,1774329047922,-4137.62686139,0.00019866,2]
[408828528,1774329047932,-5631.76989466,0.00019866,2]
[408828529,1774329047941,-7355.78108691,0.00019866,2]
[408828530,1774329047951,-9309.66043812,0.00019866,2]
[408828531,1774329047960,-11493.4079483,0.00019866,2]
[408828532,1774329047970,-314.43334179,0.00019866,2]
[408828533,1774329047979,-565.98001522,0.00019866,2]
[408828534,1774329047988,-1006.18669373,0.00019866,2]
[408828535,1774329047997,-1572.16670895,0.00019866,2]
[408828536,1774329048006,-2263.92006088,0.00019866,2]
[408828537,1774329048016,-3081.44674954,0.00019866,2]
[408828538,1774329048026,-13907.02361744,0.00019866,2]
[408828539,1774329048036,-296.10075814,0.000199,3]
[408828540,1774329048045,-4374.58139568,0.000199,2]
[408828541,1774329048055,-267.727327,0.0001996,2]